[Event "20th Delhi GM Open 2023"]
[Site "New Delhi"]
[Date "2023.03.30"]
[Round "10.9"]
[White "Krasenkow, Michal"]
[Black "Goutham Krishna H"]
[Result "1-0"]
[ECO "E92"]
[WhiteElo "2527"]
[BlackElo "1990"]
[Annotator "TA"]
[PlyCount "125"]
[EventDate "2023.03.23"]
[EventType "swiss"]
[EventCountry "IND"]
[SourceTitle "playchess.com"]
[Source "ChessBase"]
[SourceQuality "1"]
[TimeControl "5400+30"]

{[%evp 23,125,57,98,102,106,49,127,105,154,123,141,88,145,152,161,147,203,177,220,196,185,186,193,122,196,172,171,240,277,169,185,185,183,105,198,198,254,201,189,201,191,202,190,188,208,205,327,314,287,287,313,330,335,304,281,46,47,46,324,327,352,318,357,360,470,477,464,343,435,-22,91,102,982,1015,1035,1021,5826,5193,1602,1220,1356,1493,1075,918,4098,2527,29985,29986,29973,29974,29973,29974,29970,29970,29991,29992,29994,29995,29996,29997,29997,29998,29998,29999]} 1. Nf3 {[%emt 0:00:02]} Nf6 {[%emt 0:00:05]} 2. c4 {[%emt 0:00:06]} g6 {[%emt 0:00:05]} 3. Nc3 {[%emt 0:00:04]} Bg7 {[%emt 0:00:06]} 4. e4 {[%emt 0:00:02]} d6 {[%emt 0:00:05]} 5. d4 {[%emt 0:00:04]} O-O {[%emt 0:00:05]} 6. h3 {[%emt 0:00:02]} Nbd7 {[%emt 0:00:31]} 7. Bg5 {[%emt 0:00:05]} e5 {[%emt 0:00:05]} 8. d5 {[%emt 0:00:03]} h6 {[%emt 0:00:29]} 9. Be3 {[%emt 0:00:05]} Nc5 {[%emt 0:00:06]} 10. Nd2 {[%emt 0:00:05]} a5 {[%emt 0:00:04]} 11. Be2 {[%emt 0:00:08]} Ne8 {[%emt 0:00:46]} 12. g4 {[%emt 0:00:19]} f5 {[%emt 0:00:13]} 13. exf5 {[%emt 0:00:04] E92: King's Indian: Classical: 6 Be2 e5: 7 dxe5, 7 Be3 and Petrosian System without 7...Nbd7.} gxf5 {[%emt 0:00:05]} 14. Rg1 {[%emt 0:00:04] [#]} (14. Qc2 $1 $16) 14... b6 $146 {[%emt 0:34:03]} (14... a4 $1 $14) ({Predecessor:} 14... Kh8 15. g5 e4 16. Qc2 a4 17. O-O-O a3 18. b4 Na6 19. gxh6 Be5 20. f4 Bf6 {1-0 Krasenkow,M (2609)-Mista,A (2517) POL-ch Warsaw 2004 (7)}) 15. g5 $16 {[%emt 0:09:42] White is better.} Kh8 {[%emt 0:01:37]} (15... hxg5 $142 16. Bxg5 Qd7) 16. gxh6 {[%emt 0:01:42]} Bf6 {[%emt 0:00:06]} 17. Qc2 {[%emt 0:01:13]} (17. h4 $142) 17... a4 {[%emt 0:01:35]} (17... Na6 $142) 18. Nf3 $1 {[%emt 0:13:19]} Bd7 {[%emt 0:07:01]} 19. O-O-O {[%emt 0:01:11]} e4 {[%emt 0:05:25]} (19... a3 $16) 20. Ng5 $36 {[%emt 0:01:20][%mdl 2048] Hoping for f4. White is in control.} a3 {[%emt 0:00:38]} 21. b3 {[%emt 0:01:44]} Qe7 {[%emt 0:05:30]} 22. Kb1 {[%emt 0:07:30]} Qe5 {[%emt 0:19:25]} 23. Bd4 {[%emt 0:00:24] Active counter play!} (23. Bd2 $18) 23... Qe7 {[%emt 0:00:28]} (23... Qf4 $16) 24. f4 {[%emt 0:04:31]} Bxd4 {[%emt 0:00:58]} 25. Rxd4 {[%emt 0:00:05]} Nf6 {[%emt 0:00:12]} 26. Nd1 {[%emt 0:00:53]} Rg8 {[%emt 0:03:25]} 27. Qc3 {[%emt 0:03:35]} Rg6 {[%emt 0:00:05] [#]} 28. h7 {[%emt 0:07:19]} Rh6 {[%emt 0:00:55]} (28... Rg7 $16 {was necessary.}) 29. Ne3 {[%emt 0:00:37]} Rh4 {[%emt 0:00:29]} (29... Rg6 $142 30. h4 Nd3) 30. Ng2 {[%emt 0:02:24]} Rh6 {[%emt 0:00:06]} 31. Rdd1 {[%emt 0:00:10]} Qg7 {[%emt 0:02:37]} 32. Ne3 {[%emt 0:00:15]} Rg6 {[%emt 0:00:13]} 33. Kc2 {[%emt 0:04:10]} Rf8 {[%emt 0:01:27]} 34. Qa1 {[%emt 0:11:17]} Na6 {[%emt 0:05:12]} (34... Ne8 {is a better defense.} 35. Qc1 Qf6 36. Qxa3 Rh6) 35. Ne6 {[%emt 0:03:11]} Bxe6 {[%emt 0:01:35]} 36. dxe6 {[%emt 0:00:15]} Rxg1 {[%emt 0:00:40]} 37. Rxg1 {[%emt 0:00:04]} Nb4+ {[%emt 0:00:35]} 38. Kd2 {[%emt 0:00:10]} Qe7 {[%emt 0:00:08]} 39. Nxf5 $2 {[%emt 0:05:09]} ({Only move:} 39. Nd5 $1 $18 {[%cal Rd5e7]} e3+ 40. Kd1 (40. Kxe3 Qxe6+ 41. Kf2 Kxh7 $11) 40... Nbxd5 41. cxd5 Kxh7 42. Bf3) 39... Qxe6 $14 {[%emt 0:02:35]} 40. Ne3 {[%emt 0:00:06] And now Bg4 would win. Really sharp!} (40. Rg5 e3+ 41. Nxe3 Kxh7 $11) 40... c5 $2 {[%emt 0:01:06][%mdl 8192] [#]} (40... d5 $1 $14) 41. Rg5 $1 $18 {[%emt 0:08:56]} Nc6 {[%emt 0:02:47]} 42. Bg4 {[%emt 0:01:39] Black is weak on the light squares} Qf7 {[%emt 0:00:11]} 43. Nf5 {[%emt 0:00:23] Against Nd4} e3+ {[%emt 0:00:39]} 44. Kxe3 {[%emt 0:01:35][%cal Bd2e3,Be3f2,Bf2g2,Bg2f3,Bf3f4,Bf4e5][%mdl 32]} Qe6+ {[%emt 0:04:11]} 45. Kf2 {[%emt 0:00:34]} Ne5 {[%emt 0:02:45] Threatens to win with ...Ne4+.} 46. Ng3 {[%emt 0:09:21] Repels Ne4+} ({Less strong is} 46. fxe5 Ne4+ 47. Kg2 Nxg5 $16) (46. Kg2 $18) 46... Nd3+ {[%emt 0:00:35] [#] A dynamic duo of knights.} (46... Nfxg4+ $11 {keeps the balance.} 47. hxg4 (47. Rxg4 $2 {too greedy.} Qf6 $19) 47... Rxf4+ 48. Kg2 Rxg4 49. Rxg4 Qxg4) 47. Kg2 $1 $16 {[%emt 0:00:28] Black is now going downhill.} Nxf4+ {[%emt 0:01:13][%mdl 8192]} (47... Qe1 $16 48. Qxe1 Nxe1+ 49. Kg1 Nc2) 48. Kf3 $18 {[%emt 0:00:15]} Qe7 {[%emt 0:00:42]} 49. Kxf4 {[%emt 0:00:19]} d5 {[%emt 0:00:25]} 50. cxd5 {[%emt 0:00:27] White wants to mate with Be6.} c4 {[%emt 0:00:20]} 51. Be6 {[%emt 0:02:31] Intending Qe5 and mate.} Qc7+ {[%emt 0:00:46]} 52. Qe5 {[%emt 0:01:44]} Qxe5+ {[%emt 0:00:29]} 53. Kxe5 {[%emt 0:00:06]} cxb3 {[%emt 0:00:11]} 54. Ne4 {[%emt 0:00:33]} Nxe4 {[%emt 0:00:50]} 55. Rg8+ {[%emt 0:01:03] White mates.} Kxh7 {[%emt 0:00:01]} 56. Rxf8 {[%emt 0:00:03]} bxa2 {[%emt 0:00:28]} 57. Rf1 {[%emt 0:00:14]} (57. Kxe4 $2 {perishes.} a1=Q 58. Rf7+ Kg6 $19) 57... Nd2 {[%emt 0:00:44]} 58. Ra1 {[%emt 0:00:08]} b5 {[%emt 0:00:05]} 59. d6 {[%emt 0:00:05]} b4 {[%emt 0:00:08]} 60. d7 {[%emt 0:00:07]} b3 {[%emt 0:00:12]} 61. d8=Q {[%emt 0:00:10]} b2 {[%emt 0:00:09]} 62. Qh4+ {[%emt 0:00:15]} Kg7 {[%emt 0:00:07]} 63. Rg1+ {[%emt 0:00:01] An entertaining game by Krasenkow.   Weighted Error Value: White=0.34/Black=0.47} 1-0